fUSD/lending_fUSD_20240329
["ID","MTS","AMOUNT","RATE_DAILY","PERIOD"]
[320980480,1711727447338,-1947.96,0.0005315,120]
[320980482,1711727447347,-500.0,0.0005315,120]
[320980484,1711727447356,-802.89,0.0005315,120]
[320980486,1711727447365,-365.13166199,0.0005315,120]
[320980488,1711727447374,-500.0,0.0005315,120]
[320980490,1711727447383,-2662.27,0.0005315,120]
[320980492,1711727447392,-949.51,0.0005315,120]
[320980494,1711727447402,-500.0,0.0005315,120]
[320980496,1711727447411,-500.0,0.0005315,120]
[320980498,1711727447420,-500.0,0.0005315,120]
[320980500,1711727447430,-500.0,0.0005315,120]
[320980502,1711727447439,-500.04,0.0005315,120]
[320980504,1711727447448,-500.0,0.0005315,120]
[320980506,1711727447457,-1925.65,0.0005315,120]
[320980508,1711727447471,-500.0,0.0005315,120]
[320980510,1711727447480,-3660.18,0.0005315,120]
[320980512,1711727447490,-500.0,0.0005315,120]
[320980514,1711727447499,-500.0,0.0005315,120]
[320980516,1711727447509,-3065.63,0.0005315,120]
[320980518,1711727447519,-550.56,0.0005315,120]
[320980520,1711727447528,-500.0,0.0005315,120]
[320980522,1711727447538,-500.0,0.0005315,120]
[320980524,1711727447547,-3205.63,0.0005315,120]
[320980526,1711727447556,-500.0,0.0005315,120]
[320980528,1711727447565,-500.0,0.0005315,120]
[320980530,1711727447574,-1058.7,0.0005315,120]
[320980532,1711727447583,-500.0,0.0005315,120]
[320980534,1711727447592,-500.0,0.0005315,120]
[320980536,1711727447602,-500.0,0.0005315,120]
[320980538,1711727447611,-3495.3,0.0005315,120]
[320980540,1711727447620,-2680.22,0.0005315,120]
[320980542,1711727447630,-500.0,0.0005315,120]
[320980544,1711727447640,-500.0,0.0005315,120]
[320980546,1711727447649,-2574.1,0.0005315,120]
[320980548,1711727447659,-500.0,0.0005315,120]
[320980550,1711727447668,-520.8,0.0005315,120]
[320980552,1711727447678,-2324.45,0.0005315,120]
[320980554,1711727447687,-525.6,0.0005315,120]
[320980556,1711727447696,-1064.04,0.0005315,120]
[320980558,1711727447706,-500.0,0.0005315,2]
[320980560,1711727447716,-300.0,0.00053196,7]
[320980562,1711727447724,-208.71666538,0.000532,60]
[320980564,1711727447733,-150.0,0.00053285,7]
[320980566,1711727447742,-150.0,0.00053287,7]
[320980568,1711727447751,-150.0,0.0005333,7]
[320980570,1711727447759,-150.0,0.00053356,7]
[320980572,1711727447769,-150.0,0.00053367,7]
[320980574,1711727447778,-150.0,0.00053372,7]
[320980576,1711727447788,-150.0,0.00053384,7]
[320980578,1711727447797,-150.0,0.00053385,7]
[320980579,1711727447807,-5229.99453111,0.0005339,30]
[320980580,1711727447816,-150.0,0.00053401,7]
[320980581,1711727447825,-150.0,0.00053402,7]
[320980582,1711727447835,-150.0,0.00053415,7]
[320980583,1711727447844,-150.0,0.00053418,7]
[320980584,1711727447853,-150.0,0.00053419,7]
[320980585,1711727447862,-500.0,0.00053424,120]
[320980586,1711727447870,-500.0,0.00053424,120]
[320980587,1711727447880,-500.0,0.00053424,120]
[320980588,1711727447889,-500.0,0.00053424,120]
[320980589,1711727447898,-500.0,0.00053424,120]
[320980590,1711727447907,-500.0,0.00053424,120]
[320980591,1711727447916,-500.0,0.00053424,120]
[320980592,1711727447925,-500.0,0.00053424,120]
[320980593,1711727447935,-500.0,0.00053424,120]
[320980594,1711727447944,-500.0,0.00053424,120]
[320980595,1711727447953,-500.0,0.00053424,120]
[320980596,1711727447962,-500.0,0.00053424,120]
[320980597,1711727447971,-500.0,0.00053424,120]
[320980598,1711727447979,-500.0,0.00053424,120]
[320980599,1711727447988,-443.43606392,0.00053424,120]
[320980600,1711727447998,-500.0,0.00053424,120]
[320980601,1711727448007,-500.0,0.00053424,120]
[320980602,1711727448017,-500.0,0.00053424,120]
[320980603,1711727448026,-222.36,0.00053424,120]
[320980604,1711727448034,-150.0,0.00053424,120]
[320980605,1711727448043,-640.85,0.00053424,120]
[320980606,1711727448052,-523.46862699,0.00053424,120]
[320980607,1711727448061,-500.0,0.00053424,120]
[320980608,1711727448070,-500.0,0.00053424,120]
[320980609,1711727448079,-500.0,0.00053424,120]
[320980610,1711727448088,-500.0,0.00053424,120]
[320980611,1711727448097,-500.0,0.00053424,120]
[320980612,1711727448105,-500.0,0.00053424,120]
[320980613,1711727448114,-500.0,0.00053424,120]
[320980614,1711727448123,-153.6993503,0.00053424,2]
[320980615,1711727448131,-500.0,0.00053424,120]
[320980616,1711727448139,-500.0,0.00053424,120]
[320980617,1711727448149,-500.0,0.00053424,120]
[320980618,1711727448159,-500.0,0.00053424,120]
[320980619,1711727448168,-435.19,0.00053424,120]
[320980620,1711727448177,-500.0,0.00053424,120]
[320980621,1711727448186,-1556.54,0.00053424,120]
[320980622,1711727448196,-659.08,0.00053424,120]
[320980623,1711727448205,-935.94,0.00053424,120]
[320980624,1711727448215,-500.0,0.00053424,120]
[320980625,1711727448225,-543.31,0.00053424,120]
[320980626,1711727448234,-500.0,0.00053424,2]
[320980627,1711727448243,-1414.23,0.00053424,120]
[320980628,1711727448252,-774.8,0.00053424,120]
[320980629,1711727448261,-500.0,0.00053424,120]
[320980630,1711727448271,-500.0,0.00053424,120]
[320980631,1711727448280,-500.0,0.00053424,120]
[320980632,1711727448289,-8767.87,0.00053424,120]
[320980633,1711727448298,-500.0,0.00053424,120]
[320980634,1711727448307,-4545.9,0.00053424,120]
[320980635,1711727448316,-500.0,0.00053424,120]
[320980636,1711727448325,-1435.29,0.00053424,120]
[320980637,1711727448333,-729.96,0.00053424,120]
[320980638,1711727448342,-614.95,0.00053424,120]
[320980639,1711727448351,-500.0,0.00053424,120]
[320980640,1711727448359,-628.83,0.00053424,120]
[320980641,1711727448369,-509.47,0.00053424,120]
[320980642,1711727448378,-724.91,0.00053424,120]
[320980643,1711727448386,-1918.37,0.00053424,120]
[320980644,1711727448396,-500.0,0.00053424,120]
[320980645,1711727448406,-916.59,0.00053424,120]
[320980646,1711727448415,-500.0,0.00053424,120]
[320980647,1711727448424,-500.0,0.00053424,120]
[320980648,1711727448433,-852.8,0.00053424,120]
[320980649,1711727448442,-500.0,0.00053424,120]
[320980650,1711727448451,-500.0,0.00053424,120]
[320980651,1711727448464,-960.04,0.00053424,120]
[320980652,1711727448473,-581.19,0.00053424,120]
[320980653,1711727448482,-500.0,0.00053424,120]
[320980654,1711727448492,-5112.99,0.00053424,120]
[320980655,1711727448502,-500.0,0.00053424,120]
[320980656,1711727448512,-500.0,0.00053424,120]
[320980657,1711727448521,-369.12720754,0.00053424,120]
[320980658,1711727448530,-1097.14,0.00053424,120]
[320980659,1711727448540,-3742.34,0.00053424,120]
[320980660,1711727448549,-500.0,0.00053424,120]
[320980661,1711727448558,-500.0,0.00053424,120]
[320980662,1711727448568,-1281.54,0.00053424,120]
[320980663,1711727448577,-500.0,0.00053424,120]
[320980664,1711727448587,-500.0,0.00053424,120]
[320980665,1711727448597,-501.49,0.00053424,120]
[320980666,1711727448607,-500.0,0.00053424,120]
[320980667,1711727448616,-500.0,0.00053424,120]
[320980668,1711727448627,-2596.86,0.00053424,120]
[320980669,1711727448637,-1518.44,0.00053424,120]
[320980670,1711727448646,-585.91,0.00053424,120]
[320980671,1711727448655,-6048.06,0.00053424,120]
[320980672,1711727448665,-500.0,0.00053424,120]
[320980673,1711727448675,-1161.06,0.00053424,120]
[320980674,1711727448684,-500.0,0.00053424,120]
[320980675,1711727448693,-745.62,0.00053424,120]
[320980676,1711727448703,-500.0,0.00053424,120]
[320980677,1711727448714,-1559.57,0.00053424,120]
[320980678,1711727448724,-2450.8,0.00053424,120]
[320980679,1711727448734,-500.0,0.00053424,120]
[320980680,1711727448744,-2642.03,0.00053424,120]
[320980681,1711727448753,-1403.63,0.00053424,120]
[320980682,1711727448762,-2002.47,0.00053424,120]
[320980683,1711727448771,-500.0,0.00053424,120]
[320980684,1711727448781,-500.0,0.00053424,120]
[320980685,1711727448790,-500.0,0.00053424,120]
[320980686,1711727448799,-3231.44,0.00053424,120]
[320980687,1711727448809,-1180.94,0.00053424,120]
[320980688,1711727448818,-3834.73,0.00053424,21]
[320980689,1711727448827,-1463.13,0.00053424,120]
[320980690,1711727448837,-500.0,0.00053424,120]
[320980691,1711727448846,-1395.72,0.00053424,120]
[320980692,1711727448855,-500.0,0.00053424,120]
[320980693,1711727448865,-1805.89,0.00053424,120]
[320980694,1711727448874,-500.0,0.00053424,120]
[320980695,1711727448883,-1942.66,0.00053424,120]
[320980696,1711727448892,-4514.05,0.00053424,120]
[320980697,1711727448902,-1171.63,0.00053424,120]
[320980698,1711727448911,-742.08,0.00053424,120]
[320980699,1711727448920,-733.91,0.00053424,120]
[320980700,1711727448929,-1636.77,0.00053424,120]
[320980701,1711727448938,-612.5,0.00053424,120]
[320980702,1711727448947,-500.0,0.00053424,120]
[320980703,1711727448956,-500.0,0.00053424,120]
[320980704,1711727448966,-2474.6,0.00053424,120]
[320980705,1711727448975,-1947.96,0.00053424,120]
[320980706,1711727448985,-500.0,0.00053424,120]
[320980707,1711727448994,-802.89,0.00053424,120]
[320980708,1711727449003,-500.0,0.00053424,120]
[320980709,1711727449012,-2662.27,0.00053424,120]
[320980710,1711727449022,-949.51,0.00053424,120]
[320980711,1711727449031,-500.0,0.00053424,120]
[320980712,1711727449040,-500.0,0.00053424,120]
[320980713,1711727449050,-500.0,0.00053424,120]
[320980714,1711727449059,-500.0,0.00053424,120]
[320980715,1711727449068,-500.04,0.00053424,120]
[320980716,1711727449077,-1925.65,0.00053424,120]
[320980717,1711727449086,-500.0,0.00053424,120]
[320980718,1711727449096,-500.0,0.00053424,120]
[320980719,1711727449105,-3660.18,0.00053424,120]
[320980720,1711727449115,-500.0,0.00053424,120]
[320980721,1711727449124,-500.0,0.00053424,120]
[320980722,1711727449133,-3065.63,0.00053424,120]
[320980723,1711727449143,-550.56,0.00053424,120]
[320980724,1711727449152,-500.0,0.00053424,120]
[320980725,1711727449161,-500.0,0.00053424,120]
[320980726,1711727449170,-3205.63,0.00053424,120]
[320980727,1711727449179,-500.0,0.00053424,120]
[320980728,1711727449189,-500.0,0.00053424,120]
[320980729,1711727449198,-1058.7,0.00053424,120]
[320980730,1711727449207,-500.0,0.00053424,120]
[320980731,1711727449217,-500.0,0.00053424,120]
[320980732,1711727449227,-500.0,0.00053424,120]
[320980733,1711727449236,-3495.3,0.00053424,120]
[320980734,1711727449246,-2680.22,0.00053424,120]
[320980735,1711727449256,-500.0,0.00053424,120]
[320980736,1711727449266,-2574.1,0.00053424,120]
[320980737,1711727449275,-500.0,0.00053424,120]
[320980738,1711727449285,-520.8,0.00053424,120]
[320980739,1711727449294,-2324.45,0.00053424,120]
[320980740,1711727449303,-525.6,0.00053424,120]
[320980741,1711727449313,-1064.04,0.00053424,120]
[320980742,1711727449323,-592.0,0.00053424,2]
[320980743,1711727449332,-207.17777778,0.00053425,120]
[320980744,1711727449342,-150.0,0.00053431,7]
[320980745,1711727449352,-152.7686051,0.00053434,60]
[320980746,1711727449361,-150.0,0.00053445,7]
[320980747,1711727449371,-307.68911322,0.00053447,7]
[320980748,1711727449381,-150.0,0.00053452,7]
[320980749,1711727449390,-150.0,0.00053457,7]
[320980750,1711727449400,-1611.06959,0.0005346,66]
[320980751,1711727449410,-150.0,0.00053464,7]
[320980752,1711727449419,-150.0,0.00053475,7]
[320980753,1711727449429,-150.0,0.00053479,7]
[320980754,1711727449438,-237.36119489,0.00053481,120]
[320980755,1711727449448,-150.0,0.00053482,7]
[320980756,1711727449459,-150.0,0.00053486,7]
[320980757,1711727449472,-150.0,0.00053507,7]
[320980758,1711727449480,-150.0,0.00053523,7]
[320980759,1711727449489,-150.0,0.00053532,7]
[320980760,1711727449499,-150.0,0.00053534,7]
[320980761,1711727449509,-150.0,0.00053537,7]
[320980762,1711727449519,-150.0,0.00053538,7]
[320980763,1711727449528,-169.83042773,0.00053551,60]
[320980764,1711727449538,-150.0,0.00053558,7]
[320980765,1711727449549,-1493.20975127,0.0005356,120]
[320980766,1711727449559,-291.88732483,0.00053564,30]
[320980767,1711727449568,-150.0,0.00053567,7]
[320980768,1711727449578,-150.0,0.00053568,120]
[320980769,1711727449588,-150.0,0.00053571,7]
[320980770,1711727449598,-150.0,0.00053587,7]
[320980771,1711727449607,-150.0,0.00053593,7]
[320980772,1711727449617,-150.0,0.00053599,7]
[320980773,1711727449626,-150.0,0.00053617,7]
[320980774,1711727449635,-1000.0,0.00053624,120]
[320980775,1711727449644,-150.0,0.00053629,7]
[320980776,1711727449654,-1170.77280022,0.00053636,120]
[320980777,1711727449664,-150.0,0.00053642,7]
[320980778,1711727449674,-150.0,0.00053644,7]
[320980779,1711727449687,-150.0,0.00053653,7]
[320980780,1711727449697,-150.0,0.00053663,7]
[320980781,1711727449706,-150.0,0.00053664,7]
[320980782,1711727449716,-150.0,0.00053665,7]
[320980783,1711727449725,-150.0,0.00053667,7]
[320980784,1711727449735,-150.0,0.00053671,7]
[320980785,1711727449744,-305.43530816,0.00053673,7]
[320980786,1711727449753,-1611.0696,0.0005368,67]
[320980787,1711727449763,-150.0,0.00053681,7]
[320980788,1711727449772,-500.0,0.00053698,120]
[320980789,1711727449781,-500.0,0.00053698,120]
[320980790,1711727449791,-500.0,0.00053698,120]
[320980791,1711727449800,-500.0,0.00053698,120]
[320980792,1711727449810,-301.69,0.00053698,120]
[320980793,1711727449819,-500.0,0.00053698,120]
[320980794,1711727449830,-500.0,0.00053698,120]
[320980795,1711727449840,-500.0,0.00053698,120]
[320980796,1711727449849,-500.0,0.00053698,120]
[320980797,1711727449859,-500.0,0.00053698,120]
[320980798,1711727449868,-500.0,0.00053698,120]
[320980799,1711727449877,-500.0,0.00053698,120]
[320980800,1711727449887,-500.0,0.00053698,120]
[320980801,1711727449897,-451.86,0.00053698,120]
[320980802,1711727449907,-500.0,0.00053698,120]
[320980803,1711727449918,-500.0,0.00053698,120]
[320980804,1711727449927,-500.0,0.00053698,120]
[320980805,1711727449937,-150.0,0.00053698,120]
[320980806,1711727449947,-500.0,0.00053698,120]
[320980807,1711727449958,-500.0,0.00053698,120]
[320980808,1711727449968,-500.0,0.00053698,120]
[320980809,1711727449978,-500.0,0.00053698,120]
[320980810,1711727449987,-500.0,0.00053698,120]
[320980811,1711727449998,-500.0,0.00053698,120]
[320980812,1711727450007,-472.56,0.00053698,120]
[320980813,1711727450017,-500.0,0.00053698,120]
[320980814,1711727450028,-500.0,0.00053698,120]
[320980815,1711727450037,-500.0,0.00053698,120]
[320980816,1711727450047,-500.0,0.00053698,120]
[320980817,1711727450058,-500.0,0.00053698,120]
[320980818,1711727450068,-1556.54,0.00053698,120]
[320980819,1711727450077,-659.08,0.00053698,120]
[320980820,1711727450087,-935.94,0.00053698,120]
[320980821,1711727450097,-500.0,0.00053698,120]
[320980822,1711727450106,-543.31,0.00053698,120]
[320980823,1711727450116,-500.0,0.00053698,2]
[320980824,1711727450126,-1414.23,0.00053698,120]
[320980825,1711727450135,-774.8,0.00053698,120]
[320980826,1711727450144,-500.0,0.00053698,120]
[320980827,1711727450155,-500.0,0.00053698,120]
[320980828,1711727450164,-500.0,0.00053698,120]
[320980829,1711727450173,-8767.87,0.00053698,120]
[320980830,1711727450183,-500.0,0.00053698,120]
[320980831,1711727450193,-4545.9,0.00053698,120]
[320980832,1711727450203,-500.0,0.00053698,120]
[320980833,1711727450213,-1435.29,0.00053698,120]
[320980834,1711727450224,-614.95,0.00053698,120]
[320980835,1711727450233,-729.96,0.00053698,120]
[320980836,1711727450243,-335.01,0.00053698,120]
[320980837,1711727450252,-628.83,0.00053698,120]
[320980838,1711727450262,-509.47,0.00053698,120]
[320980839,1711727450271,-724.91,0.00053698,120]
[320980840,1711727450282,-1918.37,0.00053698,120]
[320980841,1711727450291,-500.0,0.00053698,120]
[320980842,1711727450301,-916.59,0.00053698,120]
[320980843,1711727450311,-500.0,0.00053698,120]
[320980844,1711727450321,-500.0,0.00053698,120]
[320980845,1711727450330,-852.8,0.00053698,120]
[320980846,1711727450340,-500.0,0.00053698,120]
[320980847,1711727450349,-500.0,0.00053698,120]
[320980848,1711727450359,-960.04,0.00053698,120]
[320980849,1711727450369,-581.19,0.00053698,120]
[320980850,1711727450379,-500.0,0.00053698,120]
[320980851,1711727450399,-5112.99,0.00053698,120]
[320980852,1711727450419,-500.0,0.00053698,120]
[320980853,1711727450441,-500.0,0.00053698,120]
[320980854,1711727450454,-1097.14,0.00053698,120]
[320980855,1711727450465,-3742.34,0.00053698,120]
[320980856,1711727450474,-500.0,0.00053698,120]
[320980857,1711727450484,-500.0,0.00053698,120]
[320980858,1711727450494,-1281.54,0.00053698,120]
[320980859,1711727450504,-500.0,0.00053698,120]
[320980860,1711727450514,-500.0,0.00053698,120]
[320980861,1711727450524,-501.49,0.00053698,120]
[320980862,1711727450534,-500.0,0.00053698,120]
[320980863,1711727450565,-500.0,0.00053698,120]
[320980864,1711727450589,-2596.86,0.00053698,120]
[320980865,1711727450603,-585.91,0.00053698,120]
[320980866,1711727450614,-1518.44,0.00053698,120]
[320980867,1711727450624,-6048.06,0.00053698,120]
[320980868,1711727450635,-500.0,0.00053698,120]
[320980869,1711727450645,-1161.06,0.00053698,120]
[320980870,1711727450656,-500.0,0.00053698,120]
[320980871,1711727450666,-745.62,0.00053698,120]
[320980872,1711727450676,-500.0,0.00053698,120]
[320980873,1711727450687,-1559.57,0.00053698,120]
[320980874,1711727450697,-2450.8,0.00053698,120]
[320980875,1711727450707,-500.0,0.00053698,120]
[320980876,1711727450719,-2642.03,0.00053698,120]
[320980877,1711727450730,-1403.63,0.00053698,120]
[320980878,1711727450740,-2002.47,0.00053698,120]
[320980879,1711727450750,-500.0,0.00053698,120]
[320980880,1711727450760,-500.0,0.00053698,120]
[320980881,1711727450770,-500.0,0.00053698,120]
[320980882,1711727450780,-3231.44,0.00053698,120]
[320980883,1711727450791,-1180.94,0.00053698,120]
[320980884,1711727450801,-3834.73,0.00053698,21]
[320980885,1711727450812,-1463.13,0.00053698,120]
[320980886,1711727450822,-500.0,0.00053698,120]
[320980887,1711727450833,-1395.72,0.00053698,120]
[320980888,1711727450843,-1805.89,0.00053698,120]
[320980889,1711727450853,-182.85698802,0.00053698,120]
[320980890,1711727450863,-1942.66,0.00053698,120]
[320980891,1711727450873,-4514.05,0.00053698,120]
[320980892,1711727450883,-742.08,0.00053698,120]
[320980893,1711727450893,-733.91,0.00053698,120]
[320980894,1711727450903,-1636.77,0.00053698,120]
[320980895,1711727450913,-612.5,0.00053698,120]
[320980896,1711727450923,-500.0,0.00053698,120]
[320980897,1711727450933,-500.0,0.00053698,120]
[320980898,1711727450943,-2474.6,0.00053698,120]
[320980899,1711727450953,-1947.96,0.00053698,120]
[320980900,1711727450963,-500.0,0.00053698,120]
[320980901,1711727450972,-802.89,0.00053698,120]
[320980902,1711727450983,-500.0,0.00053698,120]
[320980903,1711727450993,-2662.27,0.00053698,120]
[320980904,1711727451003,-949.51,0.00053698,120]
[320980905,1711727451013,-500.0,0.00053698,120]
[320980906,1711727451023,-500.0,0.00053698,120]
[320980907,1711727451033,-500.0,0.00053698,120]
[320980908,1711727451043,-500.0,0.00053698,120]
[320980909,1711727451053,-1925.65,0.00053698,120]
[320980910,1711727451063,-500.04,0.00053698,120]
[320980911,1711727451073,-500.0,0.00053698,120]
[320980912,1711727451083,-500.0,0.00053698,120]
[320980913,1711727451092,-3660.18,0.00053698,120]
[320980914,1711727451103,-500.0,0.00053698,120]
[320980915,1711727451113,-500.0,0.00053698,120]
[320980916,1711727451123,-3065.63,0.00053698,120]
[320980917,1711727451133,-550.56,0.00053698,120]
[320980918,1711727451143,-500.0,0.00053698,120]
[320980919,1711727451153,-500.0,0.00053698,120]
[320980920,1711727451163,-3205.63,0.00053698,120]
[320980921,1711727451172,-500.0,0.00053698,120]
[320980922,1711727451183,-243.56,0.00053698,120]
[320980923,1711727451193,-1058.7,0.00053698,120]
[320980924,1711727451207,-500.0,0.00053698,120]
[320980925,1711727451217,-500.0,0.00053698,120]
[320980926,1711727451226,-500.0,0.00053698,120]
[320980927,1711727451236,-3495.3,0.00053698,120]
[320980928,1711727451246,-2680.22,0.00053698,120]
[320980929,1711727451256,-500.0,0.00053698,120]
[320980930,1711727451267,-2574.1,0.00053698,120]
[320980931,1711727451278,-500.0,0.00053698,120]
[320980932,1711727451288,-520.8,0.00053698,120]
[320980933,1711727451298,-2324.45,0.00053698,120]
[320980934,1711727451308,-525.6,0.00053698,120]
[320980935,1711727451318,-1064.04,0.00053698,120]
[320980936,1711727451328,-150.0,0.00053703,7]
[320980937,1711727451340,-152.41256319,0.00053705,60]
[320980938,1711727451350,-150.0,0.00053706,7]
[320980939,1711727451362,-150.0,0.00053711,7]
[320980940,1711727451372,-150.0,0.00053717,7]
[320980941,1711727451383,-150.0,0.00053717,7]
[320980942,1711727451393,-150.0,0.00053726,7]
[320980943,1711727451403,-150.0,0.00053726,7]
[320980944,1711727451414,-150.0,0.0005373,7]
[320980945,1711727451424,-150.0,0.00053737,7]
[320980946,1711727451435,-150.0,0.00053749,7]
[320980947,1711727451445,-386.92448372,0.0005375,30]
[320980948,1711727451456,-150.0,0.00053757,7]
[320980949,1711727451469,-150.0,0.00053757,7]
[320980950,1711727451479,-150.0,0.00053759,7]
[320980951,1711727451489,-150.0,0.0005376,7]
[320980952,1711727451500,-150.0,0.00053765,7]
[320980953,1711727451512,-150.0,0.00053771,7]
[320980954,1711727451523,-150.0,0.00053784,7]
[320980955,1711727451533,-150.0,0.00053785,7]
[320980956,1711727451545,-150.0,0.00053797,7]
[320980957,1711727451556,-150.0,0.00053797,7]
[320980958,1711727451566,-150.0,0.00053798,7]
[320980959,1711727451577,-3500.0,0.000538,19]
[320980960,1711727451587,-150.0,0.00053802,7]
[320980961,1711727451597,-1500.0,0.00053805,7]
[320980962,1711727451609,-1500.0,0.0005381,7]
[320980963,1711727451927,-150.0,0.00053812,7]
[320980964,1711727451940,-150.0,0.00053819,7]
[320980965,1711727451949,-150.0,0.00053821,7]
[320980966,1711727451959,-150.0,0.00053842,7]
[320980967,1711727451970,-1493.20975127,0.00053842,120]
[320980968,1711727451980,-150.0,0.00053845,7]
[320980969,1711727451990,-150.0,0.00053845,7]
[320980970,1711727451999,-150.0,0.00053862,7]
[320980971,1711727452009,-150.0,0.00053864,7]
[320980972,1711727452018,-150.0,0.00053868,7]
[320980973,1711727452027,-150.0,0.00053869,7]
[320980974,1711727452036,-150.5,0.0005387,15]
[320980975,1711727452045,-150.0,0.00053875,7]
[320980976,1711727452054,-150.5,0.0005388,15]
[320980977,1711727452063,-5300.0,0.0005388,3]
[320980978,1711727452071,-150.0,0.00053888,7]
[320980979,1711727452081,-150.5,0.0005389,15]
[320980980,1711727452089,-1500.0,0.00053893,7]
[320980981,1711727452099,-300.0,0.00053895,7]
[320980982,1711727452108,-1050.24886909,0.00053897,2]
[320980983,1711727452118,-150.0,0.00053899,7]
[320980984,1711727452127,-283074.26803713,0.000539,36]
[320980985,1711727452137,-188949.393,0.000539,2]
[320980986,1711727452146,-3274.5288,0.000539,2]
[320980987,1711727452155,-4600.0,0.000539,19]
[320980988,1711727452165,-150.0,0.00053903,7]
[320980989,1711727452174,-150.0,0.00053905,7]
[320980990,1711727452184,-150.0,0.00053908,7]
[320980991,1711727452194,-1170.77280022,0.00053908,120]
[320980992,1711727452203,-150.0,0.00053914,7]
[320980993,1711727452213,-150.0,0.00053916,7]
[320980994,1711727452223,-150.0,0.00053928,7]
[320980995,1711727452232,-150.0,0.00053935,7]
[320980996,1711727452241,-150.0,0.00053936,7]
[320980997,1711727452251,-150.0,0.00053945,7]
[320980998,1711727452260,-300.89227006,0.0005395,2]
[320980999,1711727452269,-237.36119489,0.00053954,120]
[320981000,1711727452279,-150.0,0.00053955,7]
[320981001,1711727452289,-150.0,0.00053957,7]
[320981002,1711727452298,-206.0,0.00053958,15]
[320981003,1711727452307,-150.0,0.00053958,7]
[320981004,1711727452316,-150.5,0.0005396,15]
[320981005,1711727452325,-261.0,0.0005396,15]
[320981006,1711727452335,-206.0,0.00053968,15]
[320981007,1711727452344,-150.5,0.0005397,15]
[320981008,1711727452357,-261.0,0.0005397,15]
[320981009,1711727452366,-500.0,0.00053972,120]
[320981010,1711727452375,-500.0,0.00053972,120]
[320981011,1711727452385,-500.0,0.00053972,120]
[320981012,1711727452394,-500.0,0.00053972,120]
[320981013,1711727452403,-500.0,0.00053972,120]
[320981014,1711727452413,-500.0,0.00053972,120]
[320981015,1711727452422,-500.0,0.00053972,120]
[320981016,1711727452431,-540.2,0.00053972,120]
[320981017,1711727452441,-500.0,0.00053972,120]
[320981018,1711727452451,-500.0,0.00053972,120]
[320981019,1711727452462,-500.0,0.00053972,120]
[320981020,1711727452472,-500.0,0.00053972,120]
[320981021,1711727452481,-500.0,0.00053972,120]
[320981022,1711727452490,-500.0,0.00053972,120]
[320981023,1711727452502,-500.0,0.00053972,120]
[320981024,1711727452511,-150.0,0.00053972,120]
[320981025,1711727452521,-228.72,0.00053972,120]
[320981026,1711727452531,-500.0,0.00053972,120]
[320981027,1711727452541,-500.0,0.00053972,120]
[320981028,1711727452552,-500.0,0.00053972,120]